[Event "Minior-SM 2025"]
[Site "Uppsala, Sweden"]
[Date "2025.06.30"]
[Round "1.1"]
[White "Thamarai, Yohan"]
[Black "Lang Sohl, Benjamin"]
[Result "1/2-1/2"]
[TimeControl "90 min for 40 move + 30 min with an increment of 30 sec starting move 1"]
[WhiteFideId "1773011"]
[BlackFideId "1790250"]
[WhiteElo "1761"]
[BlackElo "1552"]

1. e4 {[%clk 01:30:48]} {[%emt 00:00:11]} e5 {[%clk 01:30:20]} {[%emt
00:00:40]} 2. Bc4 {[%clk 01:31:09]} {[%emt 00:00:09]} Nf6 {[%clk 01:29:56]}
{[%emt 00:00:53]} 3. Nf3 {[%clk 01:31:32]} {[%emt 00:00:08]} Nc6 {[%clk
01:26:13]} {[%emt 00:04:14]} 4. d4 {[%clk 01:31:54]} {[%emt 00:00:08]} exd4
{[%clk 01:26:17]} {[%emt 00:00:26]} 5. O-O {[%clk 01:32:12]} {[%emt 00:00:12]}
Nxe4 {[%clk 01:26:23]} {[%emt 00:00:24]} 6. Re1 {[%clk 01:32:26]} {[%emt
00:00:15]} d5 {[%clk 01:26:28]} {[%emt 00:00:25]} 7. Bxd5 {[%clk 01:32:50]}
{[%emt 00:00:07]} Qxd5 {[%clk 01:26:38]} {[%emt 00:00:20]} 8. Nc3 {[%clk
01:33:14]} {[%emt 00:00:06]} Qd8 {[%clk 01:25:54]} {[%emt 00:01:14]} 9. Nxe4
{[%clk 01:33:35]} {[%emt 00:00:09]} Be7 {[%clk 01:26:10]} {[%emt 00:00:14]} 10.
Bg5 {[%clk 01:33:04]} {[%emt 00:01:01]} O-O {[%clk 01:25:08]} {[%emt 00:01:32]}
11. Bxe7 {[%clk 01:33:09]} {[%emt 00:00:25]} Qxe7 {[%clk 01:22:36]} {[%emt
00:03:01]} 12. Nxd4 {[%clk 01:33:14]} {[%emt 00:00:24]} Bd7 {[%clk 01:13:45]}
{[%emt 00:09:23]} 13. Nb3 {[%clk 01:28:54]} {[%emt 00:04:50]} Rad8 {[%clk
01:10:03]} {[%emt 00:04:12]} 14. Nec5 {[%clk 01:29:11]} {[%emt 00:00:13]} Be6
{[%clk 01:08:36]} {[%emt 00:01:57]} 15. Qe2 {[%clk 01:29:01]} {[%emt 00:00:34]}
Bxb3 {[%clk 01:04:30]} {[%emt 00:04:42]} 16. Qxe7 {[%clk 01:29:02]} {[%emt
00:00:29]} Nxe7 {[%clk 01:04:52]} {[%emt 00:00:08]} 17. axb3 {[%clk 01:29:27]}
{[%emt 00:00:05]} Nc6 {[%clk 01:04:22]} {[%emt 00:01:00]} 18. Rad1 {[%clk
01:26:24]} {[%emt 00:03:33]} Rxd1 {[%clk 00:51:00]} {[%emt 00:13:52]} 19. Rxd1
{[%clk 01:26:40]} {[%emt 00:00:14]} Rd8 {[%clk 00:46:00]} {[%emt 00:05:29]} 20.
Rxd8+ {[%clk 01:22:07]} {[%emt 00:05:02]} Nxd8 {[%clk 00:42:45]} {[%emt
00:03:46]} 21. f4 {[%clk 01:21:57]} {[%emt 00:00:40]} b6 {[%clk 00:38:39]}
{[%emt 00:04:36]} 22. Nd3 {[%clk 01:17:31]} {[%emt 00:04:55]} f5 {[%clk
00:37:48]} {[%emt 00:01:22]} 23. Kf2 {[%clk 01:16:29]} {[%emt 00:01:31]} Kf7
{[%clk 00:34:57]} {[%emt 00:03:21]} 24. Ke3 {[%clk 01:16:45]} {[%emt 00:00:14]}
Ke6 {[%clk 00:34:00]} {[%emt 00:01:27]} 25. Kd4 {[%clk 01:16:28]} {[%emt
00:00:47]} Nc6+ {[%clk 00:32:41]} {[%emt 00:00:53]} 26. Kc4 {[%clk 01:16:44]}
{[%emt 00:01:11]} a5 {[%clk 00:28:14]} {[%emt 00:04:56]} 27. Kb5 {[%clk
01:13:03]} {[%emt 00:04:11]} Nd4+ {[%clk 00:27:29]} {[%emt 00:01:15]} 28. Ka6
{[%clk 01:12:46]} {[%emt 00:00:47]} Nxc2 {[%clk 00:27:43]} {[%emt 00:00:15]} 29.
Kb7 {[%clk 01:13:10]} {[%emt 00:00:07]} Kd6 {[%clk 00:27:16]} {[%emt 00:00:57]}
30. Ne5 {[%clk 01:13:31]} {[%emt 00:00:08]} Nd4 {[%clk 00:26:25]} {[%emt
00:01:16]} 31. Nc4+ {[%clk 01:13:49]} {[%emt 00:00:18]} Kd7 {[%clk 00:26:38]}
{[%emt 00:00:17]} 32. Ne5 {[%clk 01:13:56]} {[%emt 00:00:22]} Kd6 {[%clk
00:26:55]} {[%emt 00:00:13]} 33. Nc4+ {[%clk 01:14:18]} {[%emt 00:00:09]} Kc5
{[%emt 00:00:25]} 34. Kxc7 {[%emt 00:00:01]} Ne6+ 1/2-1/2

[Event "Minior-SM 2025"]
[Site "Uppsala, Sweden"]
[Date "2025.06.30"]
[Round "1.2"]
[White "Jiang, Fanan"]
[Black "Leon, David"]
[Result "1/2-1/2"]
[TimeControl "90 min for 40 move + 30 min with an increment of 30 sec starting move 1"]
[WhiteFideId "1781022"]
[BlackFideId "1785338"]
[WhiteElo "1521"]
[BlackElo "1734"]

1. e4 {[%clk 01:30:51]} {[%emt 00:00:08]} e6 {[%clk 01:30:50]} {[%emt
00:00:11]} 2. d4 {[%clk 01:30:58]} {[%emt 00:00:23]} d5 {[%clk 01:30:46]}
{[%emt 00:00:33]} 3. exd5 {[%clk 01:30:41]} {[%emt 00:00:47]} exd5 {[%clk
01:30:36]} {[%emt 00:00:40]} 4. Nf3 {[%clk 01:30:04]} {[%emt 00:01:07]} Bd6
{[%clk 01:28:07]} {[%emt 00:03:00]} 5. Nc3 {[%clk 01:24:14]} {[%emt 00:06:20]}
c6 {[%clk 01:24:01]} {[%emt 00:04:35]} 6. Bd3 {[%clk 01:23:04]} {[%emt
00:01:40]} Nf6 {[%clk 01:23:01]} {[%emt 00:01:30]} 7. O-O {[%clk 01:22:17]}
{[%emt 00:01:17]} O-O {[%clk 01:22:08]} {[%emt 00:01:24]} 8. Ne5 {[%clk
01:13:16]} {[%emt 00:09:31]} Bxe5 {[%clk 01:16:09]} {[%emt 00:06:28]} 9. dxe5
{[%clk 01:12:22]} {[%emt 00:01:25]} Ng4 {[%clk 01:16:17]} {[%emt 00:00:21]} 10.
Bf4 {[%clk 01:12:08]} {[%emt 00:00:43]} Re8 {[%clk 01:11:46]} {[%emt 00:05:02]}
11. Re1 {[%clk 01:03:33]} {[%emt 00:09:05]} f6 {[%clk 00:49:14]} {[%emt
00:23:01]} 12. e6 {[%clk 00:39:40]} {[%emt 00:24:23]} Rxe6 {[%clk 00:42:52]}
{[%emt 00:06:51]} 13. Rxe6 {[%clk 00:38:22]} {[%emt 00:01:48]} Bxe6 {[%clk
00:40:24]} {[%emt 00:02:58]} 14. Qe2 {[%clk 00:37:57]} {[%emt 00:00:54]} Qd7
{[%clk 00:30:13]} {[%emt 00:10:41]} 15. Re1 {[%clk 00:37:15]} {[%emt 00:01:13]}
Bf7 {[%clk 00:25:08]} {[%emt 00:05:35]} 16. h3 {[%clk 00:36:23]} {[%emt
00:01:23]} Nh6 {[%clk 00:24:41]} {[%emt 00:00:56]} 17. Bxh6 {[%clk 00:35:01]}
{[%emt 00:01:51]} gxh6 {[%clk 00:25:00]} {[%emt 00:00:11]} 18. Qe3 {[%clk
00:35:03]} {[%emt 00:00:28]} Kg7 {[%clk 00:22:47]} {[%emt 00:02:43]} 19. Qg3+
{[%clk 00:31:11]} {[%emt 00:04:22]} Bg6 {[%clk 00:22:02]} {[%emt 00:01:15]} 20.
Ne2 {[%clk 00:30:23]} {[%emt 00:01:19]} Kf7 {[%clk 00:20:43]} {[%emt 00:01:48]}
21. Bxg6+ {[%clk 00:24:40]} {[%emt 00:06:13]} hxg6 {[%clk 00:20:59]} {[%emt
00:00:14]} 22. Nf4 {[%clk 00:24:22]} {[%emt 00:00:48]} g5 {[%clk 00:16:57]}
{[%emt 00:04:32]} 23. Ne6 {[%clk 00:23:15]} {[%emt 00:01:38]} Na6 {[%clk
00:15:13]} {[%emt 00:02:15]} 24. Qg4 {[%clk 00:21:05]} {[%emt 00:02:39]} Kg8
{[%clk 00:12:57]} {[%emt 00:02:46]} 1/2-1/2

[Event "Minior-SM 2025"]
[Site "Uppsala, Sweden"]
[Date "2025.06.30"]
[Round "1.3"]
[White "Cui, Ian"]
[Black "Hjalte, Eric"]
[Result "1/2-1/2"]
[TimeControl "90 min for 40 move + 30 min with an increment of 30 sec starting move 1"]
[WhiteFideId "1793926"]
[BlackFideId "1780344"]
[WhiteElo "1706"]
[BlackElo "1512"]

1. e4 {[%clk 01:30:54]} {[%emt 00:00:05]} c5 {[%clk 01:30:46]} {[%emt
00:00:14]} 2. Nf3 {[%clk 01:31:12]} {[%emt 00:00:11]} Nc6 {[%clk 01:29:00]}
{[%emt 00:02:17]} 3. Nc3 {[%clk 01:30:54]} {[%emt 00:00:48]} d6 {[%clk
01:29:01]} {[%emt 00:00:30]} 4. Bb5 {[%clk 01:30:40]} {[%emt 00:00:43]} Nf6
{[%clk 01:28:31]} {[%emt 00:01:00]} 5. d3 {[%clk 01:30:18]} {[%emt 00:00:53]}
e6 {[%clk 01:28:16]} {[%emt 00:00:45]} 6. O-O {[%clk 01:30:09]} {[%emt
00:00:38]} Be7 {[%clk 01:28:16]} {[%emt 00:00:30]} 7. Re1 {[%clk 01:28:52]}
{[%emt 00:01:47]} O-O {[%clk 01:26:34]} {[%emt 00:02:12]} 8. Bxc6 {[%clk
01:27:55]} {[%emt 00:01:27]} bxc6 {[%clk 01:26:42]} {[%emt 00:00:22]} 9. Bf4
{[%clk 01:27:55]} {[%emt 00:00:30]} e5 {[%clk 01:26:42]} {[%emt 00:00:30]} 10.
Bg5 {[%clk 01:27:43]} {[%emt 00:00:37]} Rb8 {[%clk 01:24:56]} {[%emt 00:02:21]}
11. b3 {[%clk 01:26:25]} {[%emt 00:01:49]} Re8 {[%clk 01:24:15]} {[%emt
00:01:08]} 12. h3 {[%clk 01:26:03]} {[%emt 00:00:54]} h6 {[%clk 01:21:47]}
{[%emt 00:02:58]} 13. Bxf6 {[%clk 01:25:11]} {[%emt 00:01:23]} Bxf6 {[%clk
01:21:55]} {[%emt 00:00:21]} 14. Ne2 {[%clk 01:24:58]} {[%emt 00:00:42]} d5
{[%clk 01:21:43]} {[%emt 00:00:43]} 15. Ng3 {[%clk 01:25:12]} {[%emt 00:00:16]}
Ba6 {[%clk 01:21:19]} {[%emt 00:00:52]} 16. Nh5 {[%clk 01:18:38]} {[%emt
00:07:06]} c4 {[%clk 01:19:48]} {[%emt 00:02:01]} 17. Rc1 {[%clk 01:14:59]}
{[%emt 00:04:05]} c3 {[%clk 01:16:55]} {[%emt 00:03:27]} 18. d4 {[%clk
01:10:21]} {[%emt 00:05:05]} exd4 {[%clk 01:14:23]} {[%emt 00:03:05]} 19. Nxf6+
{[%clk 01:10:21]} {[%emt 00:00:29]} Qxf6 {[%clk 01:14:33]} {[%emt 00:00:19]} 20.
e5 {[%clk 01:09:28]} {[%emt 00:01:24]} Qe7 {[%clk 01:05:27]} {[%emt 00:09:31]}
21. Qxd4 {[%clk 01:08:30]} {[%emt 00:01:31]} Qb4 {[%clk 00:59:04]} {[%emt
00:06:52]} 22. Qxa7 {[%clk 01:07:40]} {[%emt 00:01:22]} Ra8 {[%clk 00:53:26]}
{[%emt 00:06:07]} 23. Qd4 {[%clk 01:07:30]} {[%emt 00:00:38]} Qxd4 {[%clk
00:48:26]} {[%emt 00:05:33]} 24. Nxd4 {[%clk 01:07:43]} {[%emt 00:00:17]} c5
{[%clk 00:48:38]} {[%emt 00:00:18]} 25. Nf3 {[%clk 01:07:45]} {[%emt 00:00:27]}
d4 {[%clk 00:47:52]} {[%emt 00:01:16]} 26. b4 {[%clk 01:05:58]} {[%emt
00:02:18]} Bb7 {[%clk 00:45:55]} {[%emt 00:02:27]} 27. bxc5 {[%clk 01:05:31]}
{[%emt 00:00:56]} Bxf3 {[%clk 00:45:18]} {[%emt 00:01:07]} 28. gxf3 {[%clk
01:05:55]} {[%emt 00:00:06]} Rxa2 {[%clk 00:45:09]} {[%emt 00:00:39]} 29. Re4
{[%clk 01:04:04]} {[%emt 00:02:20]} Rc8 {[%clk 00:43:05]} {[%emt 00:02:27]} 30.
e6 {[%clk 01:03:27]} {[%emt 00:01:15]} fxe6 {[%clk 00:43:15]} {[%emt 00:00:19]}
31. Rxd4 {[%clk 01:03:03]} {[%emt 00:00:55]} Rxc5 {[%clk 00:42:57]} {[%emt
00:00:49]} 32. Rd6 {[%clk 01:03:10]} {[%emt 00:00:23]} Kf7 {[%clk 00:42:39]}
{[%emt 00:00:47]} 33. Kf1 {[%clk 01:03:21]} {[%emt 00:00:16]} Ke7 {[%clk
00:41:55]} {[%emt 00:01:16]} 34. Rd4 {[%clk 01:03:36]} {[%emt 00:00:15]} e5
{[%clk 00:41:37]} {[%emt 00:00:49]} 35. Re4 {[%clk 01:03:40]} {[%emt 00:00:25]}
g5 {[%clk 00:40:57]} {[%emt 00:01:11]} 36. h4 {[%clk 01:03:01]} {[%emt
00:01:09]} Kf6 {[%clk 00:40:52]} {[%emt 00:00:34]} 37. hxg5+ {[%clk 01:02:40]}
{[%emt 00:00:49]} hxg5 {[%clk 00:36:04]} {[%emt 00:05:21]} 38. Ke1 {[%clk
01:02:11]} {[%emt 00:00:59]} Kf5 {[%clk 00:34:38]} {[%emt 00:01:56]} 39. Rb4
{[%emt 00:02:36]} Rb2 {[%emt 00:00:04]} 40. Rb3 1/2-1/2

[Event "Minior-SM 2025"]
[Site "Uppsala, Sweden"]
[Date "2025.06.30"]
[Round "1.4"]
[White "Jansson, Alfred"]
[Black "Gohlin Skoglund, Dorian"]
[Result "0-1"]
[TimeControl "90 min for 40 move + 30 min with an increment of 30 sec starting move 1"]
[WhiteFideId "1789210"]
[BlackFideId "1784269"]
[WhiteElo "1454"]
[BlackElo "1687"]

1. Nf3 {[%clk 01:30:58]} {[%emt 00:00:01]} d5 {[%clk 01:30:19]} {[%emt
00:00:41]} 2. c4 {[%clk 01:30:43]} {[%emt 00:00:45]} Nf6 {[%clk 01:30:01]}
{[%emt 00:00:49]} 3. cxd5 {[%clk 01:29:23]} {[%emt 00:01:50]} Nxd5 {[%clk
01:29:56]} {[%emt 00:00:35]} 4. e4 {[%clk 01:28:24]} {[%emt 00:01:29]} Nb6
{[%clk 01:29:00]} {[%emt 00:01:27]} 5. Nc3 {[%clk 01:24:10]} {[%emt 00:04:43]}
Bg4 {[%clk 01:28:04]} {[%emt 00:01:26]} 6. Be2 {[%clk 01:22:17]} {[%emt
00:02:22]} Nc6 {[%clk 01:27:59]} {[%emt 00:00:36]} 7. h3 {[%clk 01:21:02]}
{[%emt 00:01:44]} Bh5 {[%clk 01:27:39]} {[%emt 00:00:50]} 8. O-O {[%clk
01:19:40]} {[%emt 00:01:52]} e5 {[%clk 01:27:05]} {[%emt 00:01:05]} 9. b3
{[%clk 01:16:06]} {[%emt 00:04:04]} Bc5 {[%clk 01:25:07]} {[%emt 00:02:28]} 10.
Bb2 {[%clk 01:14:05]} {[%emt 00:02:29]} O-O {[%clk 01:23:22]} {[%emt 00:02:16]}
11. Re1 {[%clk 01:10:01]} {[%emt 00:04:33]} Re8 {[%clk 01:21:16]} {[%emt
00:02:38]} 12. Qc2 {[%clk 01:08:04]} {[%emt 00:02:27]} Bxf3 {[%clk 01:20:33]}
{[%emt 00:01:13]} 13. Bxf3 {[%clk 01:08:06]} {[%emt 00:00:28]} Nd4 {[%clk
01:20:43]} {[%emt 00:00:20]} 14. Qd1 {[%clk 01:05:29]} {[%emt 00:03:06]} Nxf3+
{[%clk 01:20:06]} {[%emt 00:01:07]} 15. Qxf3 {[%clk 01:05:31]} {[%emt
00:00:28]} Qxd2 {[%clk 01:19:56]} {[%emt 00:00:40]} 16. Re2 {[%clk 01:05:15]}
{[%emt 00:00:45]} Qg5 {[%clk 01:18:15]} {[%emt 00:02:09]} 17. Nb5 {[%clk
01:04:32]} {[%emt 00:01:16]} Qe7 {[%clk 01:16:46]} {[%emt 00:01:55]} 18. Rc2
{[%clk 01:04:10]} {[%emt 00:00:56]} a6 {[%clk 01:15:12]} {[%emt 00:02:05]} 19.
Nc3 {[%clk 01:03:32]} {[%emt 00:01:06]} Rad8 {[%clk 01:14:38]} {[%emt
00:01:04]} 20. Rd1 {[%clk 01:00:54]} {[%emt 00:03:08]} Rxd1+ {[%clk 01:13:49]}
{[%emt 00:01:20]} 21. Qxd1 {[%clk 01:00:46]} {[%emt 00:00:38]} Bd4 {[%clk
01:13:27]} {[%emt 00:00:51]} 22. Ne2 {[%clk 00:53:34]} {[%emt 00:07:41]} Rd8
{[%clk 01:10:47]} {[%emt 00:03:11]} 23. Nxd4 {[%clk 00:50:06]} {[%emt
00:03:57]} exd4 {[%clk 01:10:15]} {[%emt 00:01:02]} 24. Qd3 {[%clk 00:45:47]}
{[%emt 00:04:49]} Qe5 {[%clk 01:04:57]} {[%emt 00:05:48]} 25. Ba3 {[%clk
00:41:48]} {[%emt 00:04:30]} h6 {[%clk 01:01:31]} {[%emt 00:03:56]} 26. Rd2
{[%clk 00:35:29]} {[%emt 00:06:49]} c5 {[%clk 00:59:18]} {[%emt 00:02:44]} 27.
Rc2 {[%clk 00:34:59]} {[%emt 00:00:59]} Rc8 {[%clk 00:58:57]} {[%emt 00:00:50]}
28. b4 {[%clk 00:31:36]} {[%emt 00:03:54]} c4 {[%clk 00:58:25]} {[%emt
00:01:03]} 29. Qf3 {[%clk 00:29:48]} {[%emt 00:02:17]} d3 {[%clk 00:57:07]}
{[%emt 00:01:48]} 30. Bb2 {[%clk 00:29:22]} {[%emt 00:00:55]} dxc2 {[%clk
00:56:16]} {[%emt 00:01:22]} 31. Bxe5 {[%clk 00:29:32]} {[%emt 00:00:20]} c1=Q+
{[%clk 00:56:26]} {[%emt 00:00:21]} 32. Kh2 {[%clk 00:29:40]} {[%emt 00:00:18]}
Qg5 {[%clk 00:55:48]} {[%emt 00:01:10]} 33. Bf4 {[%clk 00:29:25]} {[%emt
00:00:45]} Qg6 {[%clk 00:54:08]} {[%emt 00:02:11]} 34. h4 {[%clk 00:29:14]}
{[%emt 00:00:40]} c3 {[%clk 00:50:29]} {[%emt 00:04:10]} 35. h5 {[%clk
00:29:27]} {[%emt 00:00:17]} Qf6 {[%clk 00:50:41]} {[%emt 00:00:17]} 36. e5
{[%clk 00:29:39]} {[%emt 00:00:19]} Qh4+ {[%clk 00:50:58]} {[%emt 00:00:13]} 37.
Kg1 {[%clk 00:29:57]} {[%emt 00:00:11]} c2 {[%clk 00:51:16]} {[%emt 00:00:12]}
38. Bc1 {[%clk 00:29:42]} {[%emt 00:00:45]} Rd8 {[%clk 00:51:23]} {[%emt
00:00:25]} 39. g3 {[%clk 00:29:00]} {[%emt 00:01:11]} Rd1+ {[%clk 00:51:35]}
{[%emt 00:00:17]} 40. Kg2 {[%clk 00:29:08]} {[%emt 00:00:23]} Qh1# {[%emt
00:00:08]} 0-1

[Event "Minior-SM 2025"]
[Site "Uppsala, Sweden"]
[Date "2025.07.01"]
[Round "2.1"]
[White "Gohlin Skoglund, Dorian"]
[Black "Nivstrand Wikdahl, Sion"]
[Result "0-1"]
[TimeControl "90 min for 40 move + 30 min with an increment of 30 sec starting move 1"]
[WhiteFideId "1784269"]
[BlackFideId "1781537"]
[WhiteElo "1687"]
[BlackElo "1604"]

1. e4 {[%clk 01:30:58]} {[%emt 00:00:01]} c5 {[%clk 01:30:50]} {[%emt
00:00:11]} 2. Nc3 {[%clk 01:31:17]} {[%emt 00:00:10]} e6 {[%clk 01:31:08]}
{[%emt 00:00:12]} 3. f4 {[%clk 01:31:40]} {[%emt 00:00:07]} Nc6 {[%clk
01:31:02]} {[%emt 00:00:37]} 4. Nf3 {[%clk 01:31:55]} {[%emt 00:00:15]} d5
{[%clk 01:30:46]} {[%emt 00:00:45]} 5. exd5 {[%clk 01:29:28]} {[%emt 00:02:57]}
exd5 {[%clk 01:30:53]} {[%emt 00:00:23]} 6. d4 {[%clk 01:29:16]} {[%emt
00:00:42]} cxd4 {[%clk 01:29:49]} {[%emt 00:01:34]} 7. Nxd4 {[%clk 01:29:28]}
{[%emt 00:00:19]} Nf6 {[%clk 01:23:06]} {[%emt 00:07:12]} 8. Be2 {[%clk
01:26:12]} {[%emt 00:03:46]} Bc5 {[%clk 01:16:29]} {[%emt 00:07:06]} 9. Nb3
{[%clk 01:18:54]} {[%emt 00:07:49]} Bb4 {[%clk 01:13:15]} {[%emt 00:03:43]} 10.
a3 {[%clk 01:13:12]} {[%emt 00:06:12]} Bxc3+ {[%clk 01:13:08]} {[%emt
00:00:36]} 11. bxc3 {[%clk 01:13:16]} {[%emt 00:00:26]} O-O {[%clk 01:12:02]}
{[%emt 00:01:38]} 12. O-O {[%clk 01:13:35]} {[%emt 00:00:10]} Ne4 {[%clk
01:11:16]} {[%emt 00:01:16]} 13. Qd3 {[%clk 01:08:57]} {[%emt 00:05:08]} f5
{[%clk 01:07:45]} {[%emt 00:04:01]} 14. c4 {[%clk 01:06:50]} {[%emt 00:02:38]}
Be6 {[%clk 01:05:11]} {[%emt 00:03:03]} 15. c5 {[%clk 00:59:42]} {[%emt
00:07:38]} Qe7 {[%clk 01:01:01]} {[%emt 00:04:40]} 16. Be3 {[%clk 00:52:10]}
{[%emt 00:08:01]} Rfd8 {[%clk 00:58:53]} {[%emt 00:02:38]} 17. Bd4 {[%clk
00:50:10]} {[%emt 00:02:31]} Nxd4 {[%clk 00:58:14]} {[%emt 00:01:10]} 18. Nxd4
{[%clk 00:45:19]} {[%emt 00:05:21]} Nxc5 {[%clk 00:54:19]} {[%emt 00:04:24]} 19.
Qe3 {[%clk 00:45:00]} {[%emt 00:00:48]} Ne4 {[%clk 00:52:58]} {[%emt 00:01:52]}
20. Rab1 {[%clk 00:45:04]} {[%emt 00:00:26]} Rd7 {[%clk 00:44:58]} {[%emt
00:08:30]} 21. Bd3 {[%clk 00:42:44]} {[%emt 00:02:51]} g6 {[%clk 00:41:04]}
{[%emt 00:04:24]} 22. Bxe4 {[%clk 00:40:43]} {[%emt 00:02:30]} dxe4 {[%clk
00:40:00]} {[%emt 00:01:34]} 23. Nxe6 {[%clk 00:38:59]} {[%emt 00:02:13]} Qxe6
{[%clk 00:39:52]} {[%emt 00:00:37]} 24. Rfd1 {[%clk 00:38:33]} {[%emt
00:00:58]} Rxd1+ {[%clk 00:39:21]} {[%emt 00:01:01]} 25. Rxd1 {[%clk 00:37:50]}
{[%emt 00:01:12]} Qb6 {[%clk 00:38:39]} {[%emt 00:01:12]} 26. Rd4 {[%clk
00:30:21]} {[%emt 00:08:00]} Qb1+ {[%clk 00:37:16]} {[%emt 00:01:52]} 27. Kf2
{[%clk 00:29:46]} {[%emt 00:01:05]} Qxc2+ {[%clk 00:37:02]} {[%emt 00:00:44]}
28. Kg3 {[%clk 00:29:10]} {[%emt 00:01:06]} Rc8 {[%clk 00:36:30]} {[%emt
00:01:02]} 29. Kh4 {[%clk 00:27:24]} {[%emt 00:02:16]} Qxg2 {[%clk 00:33:34]}
{[%emt 00:03:26]} 30. Qb3+ {[%clk 00:24:39]} {[%emt 00:03:15]} Kh8 {[%clk
00:32:29]} {[%emt 00:01:35]} 31. Rd8+ {[%clk 00:23:10]} {[%emt 00:01:59]} Rxd8
{[%clk 00:32:34]} {[%emt 00:00:25]} 32. Qc3+ {[%clk 00:23:27]} {[%emt
00:00:12]} Kg8 {[%clk 00:32:37]} {[%emt 00:00:27]} 33. Qc4+ {[%clk 00:23:36]}
{[%emt 00:00:22]} Kg7 {[%clk 00:32:35]} {[%emt 00:00:32]} 34. Qc7+ {[%clk
00:23:26]} {[%emt 00:00:40]} Kh6 {[%clk 00:32:33]} {[%emt 00:00:31]} 0-1